bitfinex/quotes_ETHUSD_20230110
["timestamp","ask_amount","ask_price","bid_price","bid_amount"]
[1673375055031,8.8246,1336.8,1336.5,3.79766064]
[1673375055241,1.344,1336.8,1336.5,3.79766064]
[1673375055452,8.82462,1336.8,1336.5,3.79766064]
[1673375055695,24.41321,1336.9,1336.5,14.08871439]
[1673375055906,24.34721,1336.9,1336.5,14.15005124]
[1673375056082,16.86666,1336.9,1336.5,14.15005124]
[1673375056310,16.86666,1336.9,1336.5,11.34121749]
[1673375056520,0.5611,1336.9,1336.6,3.79766064]
[1673375056716,0.5611,1336.9,1336.6,18.76035064]
[1673375056924,0.5611,1336.9,1336.7,1.87603506]
[1673375057134,0.5611,1336.9,1336.7,9.35708506]
[1673375057360,0.5611,1336.9,1336.7,9.41842191]
[1673375057556,0.5611,1336.9,1336.7,28.17830255]
[1673375057888,19.9364,1337.0,1336.7,28.17830255]
[1673375058078,10.8226,1337.0,1336.7,28.17830255]
[1673375060088,10.8226,1337.0,1336.8,2.81783026]
[1673375060293,10.2615,1337.0,1336.8,17.77832026]
[1673375060506,0.93098771,1337.1,1336.8,17.83965711]
[1673375060713,0.30398771,1337.1,1336.9,3.79766064]
[1673375060923,0.30398771,1337.1,1337.0,1.45276606]
[1673375061243,0.30398771,1337.1,1337.0,8.93219606]
[1673375061483,0.30398771,1337.1,1337.0,8.99353291]
[1673375062609,0.30398771,1337.1,1337.0,16.47296291]
[1673375062819,0.30398771,1337.1,1337.0,27.75005355]
[1673375063030,0.30398771,1337.2,1337.1,1.37698]
[1673375063367,0.30398771,1337.2,1337.1,30.523954]
[1673375063581,0.30398771,1337.2,1337.1,30.58529085]
[1673375069847,0.30398771,1337.2,1337.1,23.10642085]
[1673375070459,2.52998771,1337.2,1337.1,0.36531685]
[1673375070609,2.52998771,1337.2,1337.1,0.30398]
[1673375072948,18.82960771,1337.2,1337.1,0.30398]
[1673375073141,28.20191771,1337.2,1337.1,0.30398]
[1673375073353,31.77648948,1337.2,1337.1,0.30398]
[1673375074229,34.77648948,1337.2,1337.1,0.30398]
[1673375074388,44.96278948,1337.2,1337.1,0.30398]
[1673375075594,50.10545012,1337.2,1337.1,0.30398]
[1673375077873,50.00545012,1337.2,1337.1,0.30398]
[1673375078492,2.5,1337.1,1336.4,9.56523685]
[1673375078708,23.78512,1336.9,1336.4,15.31156714]
[1673375079031,23.78512,1336.9,1336.4,5.86766714]
[1673375079227,16.30549,1336.8,1336.4,8.36766714]
[1673375079697,16.30549,1336.8,1336.4,15.85016714]
[1673375080278,27.70975,1336.9,1336.4,30.81572714]
[1673375080601,30.573425,1336.9,1336.4,30.81572714]
[1673375080813,23.093165,1336.9,1336.4,30.81572714]
[1673375081241,1.342,1336.8,1336.4,0.06133685]
[1673375081460,1.342,1336.8,1336.3,7.7365]
[1673375081461,7.48139,1336.7,1336.3,7.79783685]
[1673375081647,7.48139,1336.7,1336.3,26.56214749]
[1673375082059,14.96278,1336.7,1336.3,11.34230749]
[1673375082272,22.44417,1336.7,1336.3,3.85899749]
[1673375082481,25.577466,1336.7,1336.3,3.79766064]
[1673375083271,26.916466,1336.7,1336.3,3.79766064]
[1673375083489,26.916466,1336.7,1336.2,9.97383685]
[1673375083639,26.916466,1336.7,1336.2,13.77149749]
[1673375083853,26.916466,1336.7,1336.2,16.75988525]
[1673375084633,27.477666,1336.7,1336.2,16.75988525]
[1673375085004,27.477666,1336.7,1336.2,24.24371525]
[1673375085785,27.477666,1336.7,1336.2,31.72761525]
[1673375085977,27.479666,1336.7,1336.2,31.72561525]
[1673375086190,27.477666,1336.7,1336.2,24.24374525]
[1673375086421,27.477666,1336.7,1336.2,16.75988525]
[1673375086576,27.477666,1336.7,1336.2,3.04972461]
[1673375086789,27.477666,1336.7,1336.1,7.57603685]
[1673375086999,27.477666,1336.7,1336.1,18.85813749]
[1673375087208,27.477666,1336.7,1336.1,11.37369749]
[1673375087209,1.345,1336.6,1336.1,11.37369749]
[1673375087474,29.93,1336.5,1336.1,11.37369749]
[1673375087689,29.93,1336.5,1336.1,13.84933724]
[1673375088022,22.4475,1336.5,1336.1,2.5369766]
[1673375088161,22.4475,1336.5,1336.1,2.47563975]
[1673375088371,23.0088,1336.5,1336.1,2.47563975]
[1673375088612,23.0088,1336.5,1336.1,17.44441975]
[1673375088613,0.5613,1336.5,1336.1,17.44441975]
[1673375088827,0.5613,1336.5,1336.1,17.5057566]
[1673375089045,8.04355,1336.5,1336.1,17.5057566]
[1673375089213,10.019987,1336.5,1336.1,17.5057566]
[1673375089641,1.345,1336.4,1336.1,15.03011685]
[1673375089872,1.345,1336.4,1336.1,0.06133685]
[1673375090085,8.82789,1336.4,1336.0,32.33661685]
[1673375090271,1.345,1336.4,1336.1,7.48436]
[1673375090504,1.345,1336.4,1336.1,7.54569685]
[1673375090718,1.345,1336.4,1336.1,15.03015685]
[1673375091773,12.235837,1336.5,1336.1,22.51461685]
[1673375091988,12.169837,1336.5,1336.1,26.8764206]
[1673375092536,10.1934,1336.5,1336.1,30.67408124]
[1673375093462,10.1934,1336.5,1336.1,23.18962124]
[1673375093626,25.15803,1336.5,1336.1,0.06133685]
[1673375093832,32.64044,1336.5,1336.0,32.33655685]
[1673375094106,10.1934,1336.5,1336.1,24.95277]
[1673375094317,9.6321,1336.5,1336.1,25.01410685]
[1673375094463,9.6321,1336.5,1336.1,29.6258596]
[1673375095009,9.6321,1336.5,1336.1,19.6413996]
[1673375095220,17.11444,1336.5,1336.1,19.6413996]
[1673375095566,17.11444,1336.5,1336.1,19.6415396]
[1673375095941,32.07912,1336.5,1336.1,4.6730896]
[1673375096148,8.04434,1336.4,1336.0,21.16475749]
[1673375096419,23.78686,1336.4,1336.0,0.06133685]
[1673375096606,23.78686,1336.4,1335.9,23.02090685]
[1673375096832,23.78686,1336.4,1335.9,23.02067685]
[1673375097140,16.30356,1336.4,1336.0,9.98495]
[1673375097354,10.79787078,1336.4,1336.0,10.04628685]
[1673375098055,15.445763,1336.5,1336.0,28.81398749]
[1673375098247,10.1954,1336.5,1336.0,28.81398749]
[1673375100096,25.16006,1336.5,1336.0,28.81398749]
[1673375100314,16.33273,1336.5,1336.0,28.81398749]
[1673375100678,16.33262,1336.5,1336.0,28.81398749]
[1673375101575,23.81484,1336.5,1336.0,28.81398749]
[1673375101789,28.116631,1336.5,1336.0,33.37688624]
[1673375102415,20.634411,1336.5,1336.0,33.37387568]
[1673375102796,28.116631,1336.5,1336.0,33.37387568]
[1673375103011,35.598851,1336.5,1336.0,25.88885568]
[1673375103195,35.598851,1336.5,1336.0,8.42189624]
[1673375103409,36.942851,1336.5,1336.0,8.42189624]
[1673375103957,32.64106,1336.5,1336.0,4.6242356]
[1673375104073,39.086296,1336.7,1336.2,17.79766064]
[1673375104074,9.75480368,1336.7,1336.2,17.79766064]
[1673375104414,0.06,1336.8,1336.4,21.48259]
[1673375104415,0.002,1336.6,1336.4,21.48259]
[1673375104747,0.94747186,1337.0,1336.8,0.066]
[1673375104925,0.94747186,1337.0,1336.8,15.02678]
[1673375105115,0.20398771,1337.2,1336.9,9.34167687]
[1673375105319,0.20398771,1337.2,1337.0,4.73182833]
[1673375105577,0.20398771,1337.2,1337.1,5.13366064]
[1673375105799,0.20398771,1337.2,1337.1,5.19499749]
[1673375106165,0.20398771,1337.2,1337.1,0.06133685]
[1673375106512,0.20398771,1337.2,1337.1,6.29766064]
[1673375106842,0.20398771,1337.2,1337.1,7.83624901]
[1673375107058,0.20398771,1337.2,1337.1,3.85899749]
[1673375107368,0.20398771,1337.2,1337.1,3.79766064]
[1673375107538,0.20398771,1337.2,1337.1,3.74766064]
[1673375108895,0.20398771,1337.2,1337.1,6.24766064]
[1673375109100,0.20398771,1337.2,1337.1,7.65399749]
[1673375109315,0.20398771,1337.2,1337.1,11.14107401]
[1673375109754,0.20398771,1337.2,1337.1,18.61994401]
[1673375110702,0.20398771,1337.2,1337.1,17.27494401]
[1673375110906,0.10000771,1337.2,1337.1,24.75381401]
[1673375111117,0.6268,1337.6,1337.3,22.43292]
[1673375111118,0.5608,1337.6,1337.3,22.43292]
[1673375111394,0.5608,1337.6,1337.5,7.47663]
[1673375111575,1.7138,1337.6,1337.5,0.06133685]
[1673375111735,3.0518,1337.6,1337.3,0.06133685]
[1673375111944,3.0518,1337.6,1337.2,0.06133685]
[1673375112154,3.0518,1337.6,1337.2,11.27566064]
[1673375112411,3.39347183,1337.6,1337.2,18.81530749]
[1673375113046,3.0518,1337.6,1337.2,18.81530749]
[1673375113433,3.0518,1337.6,1337.2,11.33699749]
[1673375113638,3.0518,1337.6,1337.2,0.06133685]
[1673375113865,3.0518,1337.6,1337.1,7.53977685]
[1673375113866,3.845,1337.4,1337.1,7.53977685]
[1673375114075,3.845,1337.4,1337.1,15.01864685]
[1673375114289,3.845,1337.4,1337.1,15.01664685]
[1673375114290,3.847,1337.4,1337.1,15.01664685]
[1673375114510,4.4059,1337.4,1337.1,15.01864685]
[1673375115048,0.5609,1337.4,1337.1,13.68060794]
[1673375115362,0.5609,1337.4,1337.1,21.15947794]
[1673375115725,0.5609,1337.5,1337.1,21.15947794]
[1673375117990,0.5609,1337.5,1337.1,17.3618173]
[1673375118144,1.8988,1337.6,1337.3,7.47764]
[1673375118349,2.37517183,1337.6,1337.3,7.53906685]
[1673375119439,1.8988,1337.6,1337.3,15.01681685]
[1673375120497,0.5608,1337.6,1337.3,15.01681685]
[1673375120705,0.5608,1337.6,1337.3,18.81447749]
[1673375121031,0.5608,1337.6,1337.3,26.29222749]
[1673375121243,0.29891834,1337.7,1337.3,26.29222749]
[1673375121562,0.29891834,1337.7,1337.4,2.62922275]
[1673375121769,0.29891834,1337.7,1337.5,7.47663]
[1673375121962,0.29891834,1337.7,1337.5,7.53796685]
[1673375122290,0.29891834,1337.7,1337.5,15.01459685]
[1673375122753,0.29891834,1337.7,1337.5,7.53796685]
[1673375124138,0.29891834,1337.7,1337.5,24.25562781]
[1673375124648,0.29891834,1337.7,1337.5,7.53796685]
[1673375125859,0.29891834,1337.7,1337.5,0.06133685]
[1673375126221,0.29891834,1337.7,1337.4,22.49189685]
[1673375127812,0.29891834,1337.7,1337.4,0.06133685]
[1673375127990,0.29891834,1337.7,1337.3,22.43235]
[1673375127991,9.11173834,1337.7,1337.3,22.43235]
[1673375128184,11.74704685,1337.7,1337.3,22.49368685]
[1673375129478,11.74704685,1337.7,1337.3,7.53872685]
[1673375129693,2.5,1337.5,1337.3,0.06133685]
[1673375129917,2.5,1337.5,1337.2,0.06133685]
[1673375129918,3.838,1337.5,1337.2,0.06133685]
[1673375130230,3.838,1337.5,1337.2,7.47815]
[1673375130231,1.338,1337.5,1337.2,7.47815]
[1673375130425,1.338,1337.5,1337.2,7.53948685]
[1673375131067,1.338,1337.5,1337.2,0.06133685]
[1673375131212,11.722876,1337.5,1337.1,7.53995685]
[1673375131424,11.722876,1337.5,1337.1,11.33761749]
[1673375132385,11.722876,1337.5,1337.1,3.85899749]
[1673375132617,19.199496,1337.5,1337.1,3.79766064]
[1673375132826,19.199496,1337.5,1337.1,7.47885]
[1673375133157,4.246236,1337.5,1337.2,8.54813744]
[1673375133318,1.345,1337.4,1337.2,8.60947429]
[1673375133526,1.345,1337.4,1337.2,1.13118429]
[1673375133843,1.345,1337.4,1337.2,1.06984744]
[1673375134402,25.66115,1337.3,1337.2,1.06984744]
[1673375134612,18.1834,1337.3,1337.2,1.06984744]
[1673375134834,25.10025,1337.3,1337.2,1.06984744]
[1673375135434,17.6225,1337.3,1337.2,1.06984744]
[1673375135861,23.76625,1337.3,1337.2,1.06984744]
[1673375136175,27.20578836,1337.3,1337.2,1.06984744]
[1673375136624,19.72803836,1337.3,1337.2,1.06984744]
[1673375137051,27.20578836,1337.3,1337.2,1.06984744]
[1673375137781,19.72803836,1337.3,1337.2,1.06984744]
[1673375137973,27.20578836,1337.3,1337.2,1.06984744]
[1673375138201,31.53978836,1337.3,1337.2,1.06984744]
[1673375138743,5.667,1337.3,1337.2,1.06984744]
[1673375140519,4.333,1337.3,1337.2,1.06984744]
[1673375140687,1.333,1337.3,1337.2,1.06984744]
[1673375141636,0.002,1337.3,1337.2,1.06984744]
[1673375141793,1.345,1337.4,1337.2,1.06984744]
[1673375142186,8.82221,1337.4,1337.2,1.06984744]
[1673375142757,25.4627066,1337.4,1337.2,1.06984744]
[1673375142916,3.845,1337.3,1337.2,1.06984744]
[1673375143120,26.27825,1337.3,1337.2,1.06984744]
[1673375144413,16.3005,1337.3,1337.2,1.06984744]
[1673375144847,16.8614,1337.3,1337.2,1.06984744]
[1673375145038,19.73946866,1337.3,1337.2,1.06984744]
[1673375145255,27.21721866,1337.3,1337.2,1.06984744]
[1673375146011,34.0148793,1337.3,1337.2,1.06984744]
[1673375146202,36.11199831,1337.3,1337.2,1.06984744]
[1673375147148,35.3598793,1337.3,1337.2,1.06984744]
[1673375147530,26.5371293,1337.3,1337.2,1.06984744]
[1673375147737,34.0148793,1337.3,1337.2,1.06984744]
[1673375148006,26.5371293,1337.3,1337.2,1.06984744]
[1673375148527,34.0148793,1337.3,1337.2,1.06984744]
[1673375149487,34.0148793,1337.3,1336.8,0.06133685]
[1673375149488,4.40617608,1337.2,1336.8,0.06133685]
[1673375149794,64.8652306,1337.1,1336.5,0.00906627]
[1673375150012,22.44081,1336.9,1336.5,0.00906627]
[1673375150163,5.244081,1336.8,1336.5,0.00906627]
[1673375150369,26.00372,1336.8,1336.5,0.00906627]
[1673375150634,1.345,1336.7,1336.5,0.00906627]
[1673375150949,8.82624,1336.7,1336.5,0.00906627]
[1673375151161,1.345,1336.7,1336.5,0.00906627]
[1673375154277,1.345,1336.7,1336.5,7.49110627]
[1673375154521,15.392,1336.8,1336.5,7.55244312]
[1673375154720,18.410487,1336.8,1336.5,15.03466312]
[1673375156043,18.410487,1336.8,1336.5,7.55244312]
[1673375157672,18.410487,1336.8,1336.5,15.03466312]
[1673375157981,18.410487,1336.8,1336.5,7.55244312]
[1673375158353,25.891157,1336.8,1336.5,0.07040312]
[1673375158563,18.410487,1336.8,1336.5,7.49122627]
[1673375158815,18.410487,1336.8,1336.5,7.55256312]
[1673375160242,15.326,1336.8,1336.5,7.55256312]
[1673375160808,15.326,1336.8,1336.5,15.03478312]
[1673375161402,15.326,1336.8,1336.5,22.51700312]
[1673375161403,13.4268,1336.8,1336.5,22.51700312]
[1673375162411,13.4268,1336.8,1336.5,15.03478312]
[1673375162557,13.4268,1336.8,1336.5,17.28726372]
[1673375163765,10.4268,1336.8,1336.5,17.28726372]
[1673375163942,10.4268,1336.8,1336.5,24.76948372]
[1673375164339,10.4268,1336.8,1336.5,17.28726372]
[1673375164513,10.4268,1336.8,1336.5,24.76948372]
[1673375164873,10.4268,1336.8,1336.5,17.28726372]
[1673375165498,0.6271,1336.9,1336.6,1.72872637]
[1673375165709,4.344,1337.0,1336.7,7.48111]
[1673375165710,14.9351,1337.0,1336.7,7.48111]
[1673375165977,13.5251,1337.0,1336.7,7.54244685]
[1673375166505,13.5251,1337.0,1336.7,17.44694417]
[1673375166662,13.5251,1337.0,1336.7,9.96583417]
[1673375167332,20.44346,1337.0,1336.7,9.96583417]
[1673375167546,12.964,1337.0,1336.7,9.96583417]
[1673375167918,21.7807,1337.0,1336.7,2.48472417]
[1673375168157,21.7807,1337.0,1336.6,26.77928007]
[1673375168560,21.7807,1337.0,1336.6,16.75272322]
[1673375168919,14.301,1337.0,1336.6,24.23438322]
[1673375170231,14.301,1337.0,1336.6,24.23236879]
[1673375170697,14.301,1337.0,1336.6,1.78804879]
[1673375170698,21.78054,1337.0,1336.6,1.78804879]
[1673375170859,27.72188703,1337.0,1336.6,19.18998194]
[1673375171069,27.72188703,1337.0,1336.6,19.25131879]
[1673375171318,35.20142703,1337.0,1336.6,9.26965879]
[1673375171503,35.20142703,1337.0,1336.6,1.78804879]
[1673375171712,42.68096703,1337.0,1336.6,1.72671194]
[1673375172125,42.68096703,1337.0,1336.5,30.63624436]
[1673375172126,14.96132,1336.8,1336.5,9.62220312]
[1673375172333,7.48066,1336.8,1336.5,0.07040312]
[1673375172538,7.48066,1336.8,1336.5,0.00906627]
[1673375173018,16.37187,1336.9,1336.5,7.49121627]
[1673375173172,7.48055,1336.8,1336.5,0.07040312]
[1673375173383,8.89142,1336.9,1336.5,16.54358587]
[1673375173642,8.82542,1336.9,1336.5,16.60492272]
[1673375174018,1.345,1336.9,1336.5,24.08714272]
[1673375175306,1.345,1336.9,1336.5,16.60492272]
[1673375175307,8.82509,1336.9,1336.5,16.60492272]
[1673375175918,1.345,1336.9,1336.5,24.08714272]
[1673375177210,20.30834703,1337.0,1336.5,24.08714272]
[1673375177399,20.24234703,1337.0,1336.7,7.48099]
[1673375177609,9.964,1337.0,1336.7,7.54232685]
[1673375177824,38.4772,1337.1,1336.7,22.50454685]
[1673375178047,0.627,1337.2,1336.8,2.25045469]
[1673375178263,0.561,1337.2,1336.9,7.47999]
[1673375178429,0.561,1337.2,1336.9,0.06133685]
[1673375178637,22.43501,1337.2,1336.8,2.31179154]
[1673375178893,31.31864551,1337.2,1336.8,9.73099469]
[1673375179061,31.31864551,1337.2,1336.8,9.79233154]
[1673375179492,31.31864551,1337.2,1336.8,2.31179154]
[1673375179711,16.36194551,1337.2,1336.8,17.21136469]
[1673375179913,8.88363551,1337.2,1336.8,17.27270154]
[1673375180161,60.3953,1337.3,1336.8,24.75325154]
[1673375180372,3.0,1337.2,1336.8,24.75325154]
[1673375180703,10.47861,1337.2,1336.8,9.79215154]
[1673375180885,17.95722,1337.2,1336.8,9.79215154]
[1673375181475,10.47861,1337.2,1336.9,4.77687579]
[1673375181792,3.0,1337.2,1336.9,0.97921515]
[1673375182003,3.0,1337.2,1336.9,9.23650017]
[1673375182262,3.0,1337.2,1336.9,16.77782702]
[1673375182571,10.47832,1337.2,1336.9,9.29783702]
[1673375182789,3.0,1337.2,1336.9,8.31862187]
[1673375182939,10.47836,1337.2,1336.9,0.83891187]
[1673375183151,10.47836,1337.2,1336.9,0.77757502]
[1673375183368,17.95699,1337.2,1336.9,0.77757502]
[1673375183576,0.561,1337.1,1336.9,0.77757502]
[1673375183787,18.013559,1337.2,1336.9,0.77757502]
[1673375183788,18.640559,1337.2,1336.9,0.77757502]
[1673375184039,11.096229,1337.2,1336.9,8.25750502]
[1673375184256,11.096229,1337.2,1336.9,8.31884187]
[1673375184418,26.053129,1337.2,1336.9,0.83891187]
[1673375184628,2.6053129,1337.1,1336.9,0.77757502]
[1673375185094,11.162229,1337.2,1336.9,8.25747502]
[1673375185304,18.574549,1337.2,1336.9,8.31881187]
[1673375185493,18.574549,1337.2,1336.9,0.83891187]
[1673375185685,18.574739,1337.2,1336.9,0.77757502]
[1673375186111,27.390249,1337.2,1336.9,0.77757502]
[1673375186411,2.7390249,1337.1,1336.9,0.77757502]
[1673375186621,12.499229,1337.2,1336.9,15.73753502]
[1673375186862,12.433229,1337.2,1336.9,8.31888187]
[1673375187671,12.433229,1337.2,1336.9,0.83891187]
[1673375188048,34.868599,1337.2,1336.9,0.77757502]
[1673375188195,5.9868599,1337.1,1336.9,0.77757502]
[1673375188410,20.9451199,1337.1,1336.9,0.77757502]
[1673375189298,18.4451199,1337.1,1336.9,0.77757502]
[1673375189823,10.9658299,1337.1,1336.9,0.77757502]
[1673375190210,10.9678299,1337.1,1336.9,0.77757502]
[1673375190538,1.09678299,1337.0,1336.9,0.77757502]
[1673375190753,11.0319099,1337.1,1336.9,0.77757502]
[1673375190927,3.4868599,1337.1,1336.9,0.77757502]
[1673375191137,19.92101,1337.2,1336.9,0.77757502]
[1673375191380,27.33371,1337.2,1336.9,0.77757502]
[1673375191590,1.5,1337.1,1336.9,0.77757502]
[1673375191812,16.45825,1337.1,1336.9,0.77757502]
[1673375192212,25.28254,1337.1,1336.9,0.77757502]
[1673375192427,10.007684,1337.0,1336.9,0.77757502]
[1673375192611,17.487114,1337.0,1336.9,0.77757502]
[1673375192827,24.966544,1337.0,1336.9,0.77757502]
[1673375193290,17.487114,1337.0,1336.9,0.77757502]
[1673375193508,26.305544,1337.0,1336.9,0.77757502]
[1673375193718,18.826114,1337.0,1336.9,0.77757502]
[1673375194023,26.305544,1337.0,1336.9,0.77757502]
[1673375194237,26.866644,1337.0,1336.9,0.77757502]
[1673375194608,19.387214,1337.0,1336.9,0.77757502]
[1673375194818,4.428354,1337.0,1336.9,0.77757502]
[1673375195367,11.907784,1337.0,1336.9,0.77757502]
[1673375195575,4.428354,1337.0,1336.9,0.77757502]
[1673375196111,1.9001,1337.0,1336.9,0.77757502]
[1673375197938,16.85896,1337.0,1336.9,0.77757502]
[1673375198354,9.37953,1337.0,1336.9,0.77757502]
[1673375198531,1.9001,1337.0,1336.9,0.77757502]
[1673375199073,8.04053,1337.0,1336.9,0.77757502]
[1673375199232,7.47943,1337.0,1336.9,0.77757502]
[1673375199448,24.40927,1337.1,1336.9,0.77757502]
[1673375199698,2.440927,1337.0,1336.9,0.77757502]
[1673375200095,21.243787,1337.0,1336.9,0.77757502]
[1673375200306,21.243787,1337.0,1336.9,0.77382483]
[1673375200307,31.723217,1337.0,1336.9,0.77382483]
[1673375200524,29.223217,1337.0,1336.9,0.77382483]
[1673375200726,30.568217,1337.0,1336.9,0.77382483]
[1673375201149,23.088787,1337.0,1336.9,0.77382483]
[1673375202227,15.609357,1337.0,1336.9,0.77382483]
[1673375202803,23.088787,1337.0,1336.9,0.77382483]
[1673375203015,30.568217,1337.0,1336.9,0.77382483]
[1673375203268,23.088787,1337.0,1336.9,0.77382483]
[1673375203479,30.568217,1337.0,1336.9,0.77382483]
[1673375203698,34.36587764,1337.0,1336.9,0.77382483]
[1673375203866,40.55222668,1337.0,1336.9,0.77382483]
[1673375204297,46.39109665,1337.0,1336.9,0.77382483]
[1673375205262,38.91166665,1337.0,1336.9,0.77382483]
[1673375205583,28.42966665,1337.0,1336.9,0.77382483]
[1673375205953,35.90909665,1337.0,1336.9,0.77382483]
[1673375206163,28.42966665,1337.0,1336.9,0.77382483]
[1673375206910,28.43166665,1337.0,1336.9,0.77382483]
[1673375207121,28.42966665,1337.0,1336.9,0.77382483]
[1673375207338,35.90909665,1337.0,1336.9,0.77382483]
[1673375208372,35.15697764,1337.0,1336.9,0.77382483]
[1673375210734,27.44754764,1337.0,1336.9,0.77382483]
[1673375210965,26.88644764,1337.0,1336.9,0.77382483]
[1673375211316,27.44754764,1337.0,1336.9,0.77382483]
[1673375211978,19.96811764,1337.0,1336.9,0.77382483]
[1673375212801,19.40701764,1337.0,1336.9,0.77382483]
[1673375213219,26.88644764,1337.0,1336.9,0.77382483]
[1673375213492,19.40701764,1337.0,1336.9,0.77382483]
[1673375214305,26.88644764,1337.0,1336.9,0.77382483]
[1673375214482,19.40701764,1337.0,1336.9,0.77382483]
[1673375214687,34.36587764,1337.0,1336.9,0.77382483]
[1673375214930,26.88644764,1337.0,1336.9,0.77382483]
[1673375215674,25.54244764,1337.0,1336.9,0.77382483]
[1673375215853,24.19744764,1337.0,1336.9,0.77382483]
[1673375217003,24.29744764,1337.0,1336.9,0.77382483]
[1673375218618,16.81801764,1337.0,1336.9,0.77382483]
[1673375219211,9.33858764,1337.0,1336.9,0.77382483]
[1673375220916,16.81801764,1337.0,1336.9,0.77382483]
[1673375221293,24.29744764,1337.0,1336.9,0.77382483]
[1673375221762,33.11487764,1337.0,1336.9,0.77382483]
[1673375221954,33.67597764,1337.0,1336.9,0.77382483]
[1673375222283,18.71711764,1337.0,1336.9,0.77382483]
[1673375222708,18.71711764,1337.0,1336.9,0.77137839]
[1673375222933,26.19654764,1337.0,1336.9,0.77137839]
[1673375223153,33.67597764,1337.0,1336.9,0.77137839]
[1673375223966,40.82694661,1337.0,1336.9,0.77137839]
[1673375224288,29.9222,1336.8,1336.6,8.37003685]
[1673375224501,1.344,1336.7,1336.6,0.06133685]
[1673375224860,27.58499064,1336.7,1336.5,0.00906627]
[1673375225185,20.10388064,1336.7,1336.5,0.00906627]
[1673375226382,12.62277064,1336.7,1336.5,0.00906627]
[1673375226704,15.0972247,1336.7,1336.5,0.00906627]
[1673375226858,3.81845406,1336.7,1336.5,0.00906627]
[1673375227073,1.344,1336.7,1336.5,0.00906627]
[1673375227539,1.344,1336.7,1336.5,7.49124627]
[1673375227754,1.344,1336.7,1336.5,0.07040312]
[1673375227973,1.344,1336.7,1336.5,7.49125627]
[1673375228125,1.344,1336.7,1336.5,0.07040312]
[1673375228334,2.359781,1336.7,1336.5,0.00906627]
[1673375228963,2.359781,1336.7,1336.5,7.49128627]
[1673375228964,1.344,1336.7,1336.5,7.49128627]
[1673375229198,1.344,1336.7,1336.5,0.07040312]
[1673375229415,1.344,1336.7,1336.5,22.45562627]
[1673375229651,1.344,1336.7,1336.5,7.55252312]
[1673375229904,1.344,1336.7,1336.5,0.07040312]
[1673375230035,1.344,1336.7,1336.5,0.00906627]
[1673375230233,3.114439,1336.7,1336.5,0.00906627]
[1673375230444,25.558409,1336.7,1336.5,0.00906627]
[1673375230653,24.214409,1336.7,1336.5,0.00906627]
[1673375231535,28.01206964,1336.7,1336.5,0.00906627]
[1673375231745,1.770439,1336.7,1336.5,0.00906627]
[1673375231924,10.4524,1336.8,1336.5,0.00906627]
[1673375232137,10.3864,1336.8,1336.5,0.00906627]
[1673375232341,17.86718,1336.8,1336.5,0.00906627]
[1673375232593,25.34796,1336.8,1336.5,0.00906627]
[1673375233304,32.82874,1336.8,1336.5,0.00906627]
[1673375233519,36.308824,1336.8,1336.5,0.00906627]
[1673375233906,21.347264,1336.8,1336.5,0.00906627]
[1673375234366,2.5,1336.7,1336.5,0.00906627]
[1673375235612,21.944234,1336.8,1336.5,0.00906627]
[1673375235847,4.769,1336.6,1336.5,0.00906627]
[1673375236016,4.769,1336.6,1336.5,8.99558087]
[1673375236225,4.769,1336.6,1336.5,9.05691772]
[1673375236438,3.6549728,1336.6,1336.5,24.02135772]
[1673375237268,3.6549728,1336.6,1336.5,16.53913772]
[1673375237479,3.6549728,1336.6,1336.5,27.81901836]
[1673375237691,3.6549728,1336.6,1336.5,34.7257098]
[1673375237692,1.67462376,1336.6,1336.5,34.7257098]
[1673375238021,1.67462376,1336.6,1336.5,32.86912555]
[1673375238241,1.67462376,1336.6,1336.5,33.43042555]
[1673375238451,1.67462376,1336.6,1336.5,32.86912555]
[1673375238884,1.67462376,1336.6,1336.5,31.02061191]
[1673375239070,1.67462376,1336.6,1336.5,16.53913772]
[1673375239288,1.67462376,1336.6,1336.5,24.02135772]
[1673375246045,1.67462376,1336.6,1336.5,16.53913772]
[1673375246877,1.67462376,1336.6,1336.5,24.02135772]
[1673375247574,1.67462376,1336.6,1336.5,16.53913772]
[1673375248200,1.67462376,1336.6,1336.5,1.57469772]
[1673375248427,1.67462376,1336.6,1336.5,1.51336087]
[1673375248665,1.67462376,1336.6,1336.5,8.99558087]
[1673375248851,1.67462376,1336.6,1336.5,1.57469772]
[1673375249064,1.67462376,1336.6,1336.5,0.00906627]
[1673375256670,9.15628376,1336.6,1336.5,0.00906627]
[1673375256879,24.11960376,1336.6,1336.5,0.00906627]
[1673375257713,24.11701222,1336.6,1336.5,0.00906627]
[1673375259938,25.46201222,1336.6,1336.5,0.00906627]
[1673375260146,29.58563644,1336.6,1336.5,0.00906627]
[1673375261506,22.10397644,1336.6,1336.5,0.00906627]
[1673375262245,7.14065644,1336.6,1336.5,0.00906627]
[1673375262446,3.01703222,1336.6,1336.5,0.00906627]
[1673375264762,10.49869222,1336.6,1336.5,0.00906627]
[1673375265279,17.98035222,1336.6,1336.5,0.00906627]
[1673375266847,3.01703222,1336.6,1336.5,0.00906627]
[1673375267097,9.15369222,1336.6,1336.5,0.00906627]
[1673375267710,1.67203222,1336.6,1336.5,0.00906627]
[1673375267919,1.67403222,1336.6,1336.5,0.00906627]
[1673375268132,1.67203222,1336.6,1336.5,0.00906627]
[1673375274215,9.15369222,1336.6,1336.5,0.00906627]
[1673375274846,12.47221044,1336.6,1336.5,0.00906627]
[1673375275106,19.95387044,1336.6,1336.5,0.00906627]
[1673375275317,27.43553044,1336.6,1336.5,0.00906627]
[1673375275531,20.51507044,1336.6,1336.5,0.00906627]
[1673375276580,13.03341044,1336.6,1336.5,0.00906627]
[1673375276773,20.51507044,1336.6,1336.5,0.00906627]
[1673375276981,33.13239108,1336.6,1336.5,0.00906627]
[1673375277195,18.16907108,1336.6,1336.5,0.00906627]
[1673375277580,20.88501108,1336.6,1336.5,0.00906627]
[1673375278220,43.32999108,1336.6,1336.5,0.00906627]
[1673375278415,48.37236837,1336.6,1336.5,0.00906627]
[1673375278645,51.37236837,1336.6,1336.5,6.27e-06]
[1673375278905,52.12448738,1336.6,1336.5,6.27e-06]
[1673375279280,52.22448738,1336.6,1336.5,6.27e-06]
[1673375279728,52.22412913,1336.6,1336.5,6.27e-06]
[1673375279938,52.45412913,1336.6,1336.5,6.27e-06]
[1673375280151,48.74811009,1336.6,1336.5,6.27e-06]
[1673375280369,33.78479009,1336.6,1336.5,6.27e-06]